bitfinex/quotes_SOLUSD_20240825
["timestamp","ask_amount","ask_price","bid_price","bid_amount"]
[1724574326962,46.5907935,157.2,157.12,1.59280656]
[1724574327287,46.5907935,157.2,157.11,2.30528602]
[1724574327652,15.3284,157.29,157.13,6.2299]
[1724574327879,6.358,157.28,157.15,15.021]
[1724574328059,6.358,157.28,157.16,4.7485613]
[1724574328365,6.358,157.28,157.17,3.89726899]
[1724574328562,6.358,157.28,157.18,2.4434671]
[1724574328773,6.358,157.28,157.18,3.15500681]
[1724574329165,45.0,157.27,157.18,0.85118254]
[1724574329551,45.0,157.27,157.18,3.15489899]
[1724574329885,6.358,157.28,157.18,3.15489899]
[1724574330186,6.358,157.28,157.18,0.85118254]
[1724574330391,6.358,157.28,157.18,3.15489562]
[1724574330760,6.358,157.28,157.18,0.85118254]
[1724574331055,6.358,157.28,157.18,3.15489562]
[1724574331253,45.0,157.27,157.18,0.85118254]
[1724574331588,45.0,157.27,157.19,1.59217359]
[1724574331758,45.0,157.27,157.2,0.85129564]
[1724574332176,6.358,157.28,157.2,0.85129564]
[1724574332485,1.58996828,157.27,157.18,3.89582656]
[1724574332678,1.58996828,157.27,157.17,2.3036596]
[1724574332862,1.58996828,157.27,157.18,3.89582705]
[1724574333065,1.58996828,157.27,157.17,2.3036596]
[1724574333273,1.58996828,157.27,157.18,1.59216745]
[1724574333473,46.58996828,157.27,157.18,1.5921674]
[1724574333677,1.5899686,157.26,157.18,1.5921674]
[1724574333987,1.5899686,157.26,157.18,1.59216538]
[1724574335287,1.5899686,157.26,157.17,3.89581047]
[1724574336288,1.5899686,157.26,157.16,20.0]
[1724574336508,6.359,157.26,157.16,20.0]
[1724574336679,45.0,157.25,157.16,20.0]
[1724574336989,1.59027304,157.32,157.18,21.5383]
[1724574337291,1.59027304,157.32,157.19,66.59183221]
[1724574337461,1.59027304,157.32,157.2,3.89488005]
[1724574338592,1.59027304,157.32,157.2,1.59183221]
[1724574339088,1.59027304,157.32,157.2,3.89453662]
[1724574339267,1.59027304,157.32,157.2,1.59183221]
[1724574339794,46.59027304,157.32,157.2,1.59183221]
[1724574340162,46.59027304,157.32,157.19,65.0]
[1724574340364,46.59027304,157.32,157.2,1.59176215]
[1724574340591,46.59027304,157.32,157.19,65.0]
[1724574340970,46.59027304,157.32,157.19,20.0]
[1724574341188,7.94669841,157.31,157.19,20.0]
[1724574341487,45.0,157.3,157.19,20.0]
[1724574341691,1.58984905,157.29,157.19,20.0]
[1724574342187,45.0,157.3,157.19,20.0]
[1724574342393,45.0,157.31,157.2,0.85066666]
[1724574342560,45.0,157.31,157.21,0.8503754]
[1724574343270,45.0,157.31,157.2,0.8503754]
[1724574343987,6.3573,157.3,157.2,0.8503754]
[1724574344186,6.3566,157.32,157.21,0.8508858]
[1724574344393,6.3564,157.32,157.2,15.4458]
[1724574344594,1.58965394,157.31,157.21,20.0]
[1724574345669,46.58965394,157.31,157.21,20.0]
[1724574348805,52.94655394,157.31,157.21,20.0]
[1724574349016,7.73249666,157.3,157.21,20.0]
[1724574349177,45.0,157.29,157.21,20.85094062]
[1724574350804,51.3577,157.29,157.21,20.85094062]
[1724574353105,51.3577,157.29,157.21,20.0]
[1724574353603,1.5900549,157.28,157.2,15.4458]
[1724574353808,6.3585,157.27,157.2,15.4458]
[1724574354005,46.5901412,157.26,157.2,15.4458]
[1724574354209,52.9493412,157.26,157.2,15.4458]
[1724574354409,46.5901412,157.26,157.18,6.4226]
[1724574354712,46.5901412,157.26,157.17,4.746073]
[1724574354713,6.3608,157.22,157.17,4.746073]
[1724574354895,1.59062343,157.21,157.17,4.746073]
[1724574355217,6.3621,157.18,157.17,4.746073]
[1724574355399,6.3617,157.19,157.17,4.746073]
[1724574355712,45.0,157.18,157.17,4.746073]
[1724574355887,46.59089209,157.18,157.17,4.746073]
[1724574366220,45.0,157.18,157.17,4.746073]
[1724574366546,15.8913,157.27,157.17,4.746073]
[1724574366706,7.94914729,157.26,157.19,16.2335]
[1724574368026,1.59020965,157.25,157.19,16.2335]
[1724574368213,46.59020965,157.25,157.19,16.2335]
[1724574371804,15.8913,157.31,157.2,0.85153587]
[1724574372222,6.3577,157.29,157.19,16.2335]
[1724574372425,7.9478049,157.28,157.2,6.5092]
[1724574373338,7.9478049,157.28,157.2,8.1012704]
[1724574373535,6.358,157.28,157.2,6.5092]
[1724574373838,46.58993359,157.27,157.2,6.5092]
[1724574374006,1.59009411,157.26,157.2,6.5092]
[1724574375426,45.0,157.27,157.2,6.5092]
[1724574375601,45.0,157.28,157.2,8.10127656]
[1724574375801,45.0,157.28,157.2,6.5092]
[1724574376926,46.58988577,157.28,157.2,6.5092]
[1724574377311,52.94828577,157.28,157.2,6.5092]
[1724574377526,51.3584,157.28,157.2,6.5092]
[1724574377731,51.3584,157.28,157.21,0.85116862]
[1724574378432,45.0,157.28,157.21,0.85116862]
[1724574379637,45.0,157.29,157.21,0.85116862]
[1724574379934,45.0,157.29,157.21,2.44316033]
[1724574382138,15.3504,157.35,157.22,16.2327]
[1724574382320,6.3564,157.33,157.23,0.85006347]
[1724574382842,6.3566,157.32,157.23,0.85006347]
[1724574383519,6.3566,157.32,157.24,0.85010386]
[1724574383722,6.3566,157.32,157.25,6.6365]
[1724574384233,1.58947319,157.31,157.25,6.6365]
[1724574384645,6.3566,157.32,157.25,6.6365]
[1724574385141,6.3566,157.32,157.26,0.85015906]
[1724574386231,6.3552,157.35,157.27,16.2327]
[1724574386737,7.9448885,157.34,157.27,16.2327]
[1724574387237,1.5892885,157.34,157.27,16.2327]
[1724574387447,6.3569,157.31,157.27,16.2327]
[1724574387740,46.58964783,157.3,157.27,16.2327]
[1724574388514,45.0,157.3,157.27,16.2327]
[1724574390139,1.58964754,157.29,157.27,16.2327]
[1724574390739,51.3573,157.3,157.27,16.2327]
[1724574390932,6.3581,157.28,157.23,16.2327]
[1724574391131,46.59000607,157.27,157.23,16.2327]
[1724574391332,1.58999367,157.26,157.23,16.2327]
[1724574391951,1.58999246,157.25,157.23,16.2327]
[1724574392153,1.59009515,157.26,157.23,16.2327]
[1724574392319,51.3585,157.27,157.23,16.2327]
[1724574395852,6.3597,157.24,157.23,16.2327]
[1724574396149,45.0,157.24,157.2,6.6365]
[1724574396528,45.0,157.25,157.2,6.6365]
[1724574397554,51.3593,157.25,157.2,6.6365]
[1724574397736,45.0,157.25,157.2,6.6365]
[1724574401257,45.0,157.25,157.2,7.48808897]
[1724574401455,45.0,157.26,157.2,7.48808897]
[1724574401628,6.3574,157.3,157.21,0.85120891]
[1724574401826,1.58975602,157.29,157.2,6.6365]
[1724574402045,7.94765602,157.29,157.2,6.6365]
[1724574402249,1.58997629,157.28,157.2,6.6365]
[1724574402430,6.3579,157.29,157.21,0.85098119]
[1724574402930,6.3573,157.3,157.2,6.6365]
[1724574403130,1.58976471,157.29,157.2,6.6365]
[1724574403333,1.58976471,157.29,157.21,1.592055]
[1724574403539,1.58976471,157.29,157.2,6.6365]
[1724574403738,1.58976471,157.29,157.21,1.59206429]
[1724574403954,1.58976471,157.29,157.2,6.6365]
[1724574404249,46.58976471,157.29,157.21,1.59205424]
[1724574404464,45.0,157.29,157.2,6.6365]
[1724574404750,45.0,157.29,157.21,18.38749016]
[1724574405064,45.0,157.29,157.22,0.85043335]
[1724574405353,45.0,157.3,157.23,1.59180051]
[1724574405548,45.0,157.3,157.24,0.85027172]
[1724574405747,6.3564,157.33,157.25,6.5684]
[1724574405946,6.3564,157.33,157.26,15.945]
[1724574406456,1.58938406,157.32,157.26,15.945]
[1724574406832,7.94494082,157.34,157.26,15.945]
[1724574407831,1.58934335,157.33,157.26,15.945]
[1724574408032,1.58934335,157.32,157.26,15.945]
[1724574408463,45.0,157.33,157.26,15.945]
[1724574408759,46.58934112,157.33,157.26,15.945]
[1724574409859,1.58934411,157.32,157.26,15.945]
[1724574410963,1.58934411,157.32,157.26,45.945]
[1724574411351,1.58934411,157.32,157.27,1.59159513]
[1724574411542,1.58934411,157.32,157.26,45.945]
[1724574411748,1.58934411,157.32,157.27,1.59159498]
[1724574412054,1.58934411,157.32,157.27,30.0]
[1724574415748,1.58934411,157.32,157.26,15.945]
[1724574415959,1.58934411,157.32,157.27,3.89384389]
[1724574416267,1.58934411,157.32,157.26,15.945]
[1724574416445,1.58934411,157.32,157.27,1.5915884]
[1724574416637,1.58934411,157.32,157.26,15.945]
[1724574417039,32.94534411,157.33,157.27,1.59164123]
[1724574417236,26.58934411,157.33,157.26,15.945]
[1724574417449,6.3557,157.34,157.26,15.945]
[1724574417739,6.3557,157.34,157.27,3.89385591]
[1724574418041,6.3557,157.34,157.26,15.945]
[1724574418250,6.3557,157.34,157.27,3.89380874]
[1724574418450,1.37562088,157.33,157.26,15.945]
[1724574418762,1.37562088,157.33,157.27,33.89380903]
[1724574419075,1.37562088,157.33,157.27,30.0]
[1724574420638,1.37562088,157.32,157.27,30.0]
[1724574422641,51.3561,157.33,157.27,30.0]
[1724574423480,1.37562088,157.32,157.27,30.0]
[1724574424288,1.37562088,157.32,157.26,15.945]
[1724574425361,51.3561,157.33,157.26,15.945]
[1724574426184,51.3561,157.33,157.27,1.59162434]
[1724574426389,51.3561,157.33,157.26,15.945]
[1724574426875,51.3561,157.33,157.27,1.59162434]
[1724574427083,1.37562088,157.32,157.26,15.945]
[1724574428381,6.3569,157.31,157.26,15.945]
[1724574428572,1.37562088,157.3,157.26,15.945]
[1724574429372,1.37562088,157.29,157.26,15.945]
[1724574429889,52.73332088,157.29,157.26,15.945]
[1724574430185,7.73332088,157.29,157.26,15.945]
[1724574430871,6.3577,157.29,157.26,15.945]
[1724574431488,6.3573,157.3,157.26,15.945]
[1724574433986,6.3564,157.32,157.26,15.945]
[1724574439493,6.3552,157.35,157.27,2.30219801]
[1724574439795,45.0,157.34,157.26,15.945]
[1724574440102,45.0,157.34,157.27,2.30221292]
[1724574440390,45.0,157.34,157.26,15.945]
[1724574440692,51.3556,157.34,157.27,2.30220908]
[1724574440870,1.37562088,157.33,157.26,15.945]
[1724574441070,1.37562088,157.33,157.27,2.30218397]
[1724574441294,1.37562088,157.33,157.26,15.945]
[1724574441501,1.37562088,157.33,157.27,2.30218418]
[1724574441676,1.37562088,157.33,157.26,15.945]
[1724574441880,1.37562088,157.33,157.27,2.30218418]
[1724574442196,1.37562088,157.33,157.26,15.945]
[1724574442400,1.37562088,157.33,157.27,2.30218397]
[1724574442580,1.37562088,157.33,157.26,15.945]
[1724574442781,1.37562088,157.33,157.27,2.30218418]
[1724574442998,1.37562088,157.33,157.26,15.945]
[1724574443173,1.37562088,157.33,157.27,2.30218384]
[1724574443376,1.37562088,157.33,157.26,15.945]
[1724574443597,51.3556,157.34,157.27,2.3022076]
[1724574443805,6.3556,157.34,157.26,15.945]
[1724574444000,6.3556,157.34,157.27,2.30220683]
[1724574444177,0.8118935,157.38,157.28,25.65043901]
[1724574444375,0.8118935,157.38,157.29,20.0]
[1724574445289,0.8118935,157.38,157.28,22.0768]
[1724574445486,6.3545,157.37,157.29,2.30200723]
[1724574445692,45.0,157.36,157.29,20.0]
[1724574447697,7.1659935,157.38,157.3,1.27133836]
[1724574447913,0.8118935,157.38,157.3,1.27133836]
[1724574448215,0.8118935,157.38,157.32,6.4614]
[1724574448383,0.8118935,157.38,157.33,3.57227479]
[1724574448719,0.8118935,157.38,157.32,6.4614]
[1724574449012,0.8118935,157.38,157.33,2.30085373]
[1724574449187,0.8118935,157.38,157.32,6.4614]
[1724574449385,0.8118935,157.38,157.33,2.29922556]
[1724574449586,0.8118935,157.38,157.32,6.4614]
[1724574449897,0.8118935,157.38,157.33,2.29922229]
[1724574450089,0.8118935,157.38,157.32,6.4614]
[1724574450298,2.18751438,157.38,157.33,2.29922263]
[1724574450609,2.18751438,157.38,157.32,6.4614]
[1724574450906,0.8118935,157.38,157.33,2.29922229]
[1724574451105,0.8118935,157.38,157.32,7.73249553]
[1724574451412,0.8118935,157.38,157.33,2.29924132]
[1724574451599,0.8118935,157.38,157.33,1.27109167]
[1724574453117,15.4209,157.48,157.29,20.0]
[1724574453118,3.34141424,157.52,157.37,22.0768]
[1724574453291,0.8118935,157.54,157.45,22.0768]
[1724574453292,0.19071438,157.54,157.45,22.0768]
[1724574453607,0.19071438,157.54,157.46,2.29580691]
[1724574454183,0.19071438,157.54,157.45,22.0768]
[1724574455493,6.3481,157.53,157.45,22.0768]
[1724574455696,45.0,157.52,157.45,22.0768]
[1724574459114,51.3484,157.52,157.45,22.0768]
[1724574459323,6.3493,157.5,157.45,22.0768]
[1724574459504,45.0,157.49,157.45,22.0768]
[1724574460509,6.3487,157.52,157.45,22.0768]
[1724574460821,51.3488,157.51,157.45,22.0768]
[1724574461917,6.3492,157.5,157.45,22.0768]
[1724574464997,0.19071438,157.54,157.45,22.0768]
[1724574465198,6.3483,157.53,157.45,22.0768]
[1724574467009,0.19071438,157.54,157.45,22.0768]
[1724574467215,51.53851438,157.54,157.45,22.0768]
[1724574467706,6.348,157.53,157.45,22.0768]
[1724574469022,51.3484,157.52,157.45,22.0768]
[1724574469210,45.0,157.51,157.45,22.0768]
[1724574469811,0.19071438,157.54,157.45,22.0768]
[1724574470534,6.3483,157.53,157.45,22.0768]
[1724574471109,51.3485,157.52,157.45,22.0768]
[1724574472138,6.349,157.51,157.45,22.0768]
[1724574474841,51.3492,157.5,157.45,22.0768]
[1724574477117,45.0,157.5,157.45,22.0768]
[1724574477312,6.3504,157.47,157.45,15.6154]
[1724574478841,6.3508,157.46,157.41,22.1733]
[1724574479170,6.3504,157.47,157.41,22.1733]
[1724574480641,6.3508,157.46,157.41,22.1733]
[1724574480840,6.3513,157.45,157.41,22.1733]
[1724574481046,51.3517,157.44,157.41,22.1733]
[1724574481221,6.3517,157.44,157.41,22.1733]
[1724574481944,6.3508,157.46,157.41,22.1733]
[1724574482323,6.3512,157.45,157.41,22.1733]
[1724574484158,6.3516,157.44,157.41,22.1733]
[1724574484331,51.3516,157.44,157.41,22.1733]
[1724574484951,6.3521,157.43,157.41,16.16]
[1724574485556,6.3521,157.43,157.37,21.8762]
[1724574487657,45.0,157.44,157.37,21.8762]
[1724574488643,60.8796,157.44,157.37,15.7069]
[1724574490643,6.3533,157.4,157.37,15.7069]
[1724574490844,45.0,157.39,157.37,15.7069]
[1724574492352,51.3536,157.39,157.33,22.941]
[1724574492656,45.0,157.39,157.33,22.941]
[1724574493039,6.3543,157.38,157.33,22.941]
[1724574494648,45.0,157.39,157.33,22.941]
[1724574494971,15.8783,157.45,157.33,22.941]
[1724574495268,6.3537,157.39,157.33,22.941]
[1724574497167,45.0,157.38,157.33,22.941]
[1724574500384,51.3541,157.38,157.33,22.941]
[1724574500767,45.0,157.38,157.33,22.941]
[1724574500968,6.3544,157.37,157.33,22.941]
[1724574501384,51.354,157.38,157.33,22.941]
[1724574501783,6.3545,157.37,157.33,22.941]
[1724574501976,45.0,157.36,157.33,22.941]
[1724574503999,6.354,157.38,157.33,22.941]
[1724574504179,45.0,157.37,157.33,22.941]
[1724574507694,51.3545,157.37,157.33,22.941]
[1724574512697,6.3537,157.39,157.33,22.941]
[1724574515489,0.2,157.37,157.33,22.941]
[1724574518088,45.2,157.37,157.33,22.941]
[1724574519288,0.2,157.37,157.33,22.941]
[1724574521787,15.8739,157.5,157.34,21.3963]
[1724574521992,6.3509,157.46,157.37,6.0048]
[1724574522194,15.8739,157.5,157.37,6.0048]
[1724574523822,6.3512,157.45,157.37,6.0048]
[1724574523992,51.3516,157.44,157.37,6.0048]
[1724574524198,45.0,157.43,157.37,6.0048]
[1724574526095,51.352,157.43,157.37,6.0048]
[1724574528122,45.0,157.43,157.37,6.0048]
[1724574529226,6.3527,157.42,157.37,6.0048]
[1724574529395,45.0,157.41,157.37,6.0048]
[1724574529590,6.3527,157.42,157.37,6.0048]
[1724574533030,6.3527,157.42,157.37,36.0048]
[1724574534709,45.0,157.41,157.37,36.0048]
[1724574536710,45.0,157.41,157.37,6.0048]
[1724574538836,45.0,157.41,157.37,6.0048]
[1724574539405,45.0,157.41,157.36,15.3915]
[1724574540131,6.3536,157.39,157.36,15.3915]
[1724574542323,45.0,157.41,157.36,15.3915]
[1724574543635,51.3528,157.41,157.36,15.3915]
[1724574544208,45.0,157.41,157.36,15.3915]
[1724574545211,6.3537,157.39,157.36,15.3915]
[1724574545432,45.0,157.38,157.36,15.3915]
[1724574549732,6.3532,157.41,157.36,15.3915]
[1724574550536,6.3532,157.41,157.37,1.59064832]
[1724574550743,6.3532,157.41,157.36,15.3915]
[1724574551541,6.3532,157.41,157.37,1.59063587]
[1724574551847,6.3532,157.41,157.36,15.3915]
[1724574552611,6.3533,157.4,157.36,15.3915]
[1724574556131,6.3529,157.41,157.36,15.3915]
[1724574556331,15.8789,157.45,157.36,15.3915]
[1724574556539,45.0,157.44,157.37,1.59067288]
[1724574556742,45.0,157.44,157.36,15.3915]
[1724574556915,45.0,157.44,157.37,1.59064533]
[1724574557120,45.0,157.44,157.36,15.3915]
[1724574557333,45.0,157.44,157.37,3.88889342]
[1724574557532,6.3524,157.42,157.38,1.59060917]
[1724574557745,45.0,157.41,157.36,15.3915]
[1724574558046,45.0,157.41,157.37,1.59059109]
[1724574558438,45.0,157.41,157.36,15.3915]
[1724574558643,45.0,157.41,157.38,1.59059957]
[1724574558829,45.0,157.41,157.36,15.3915]
[1724574559022,45.0,157.41,157.37,3.8888325]
[1724574559227,45.0,157.41,157.38,1.59057129]
[1724574559430,45.0,157.41,157.36,15.3915]
[1724574559645,45.0,157.41,157.37,3.88876468]
[1724574559847,6.3524,157.42,157.38,3.88876468]
[1724574560044,6.3524,157.42,157.36,15.3915]
[1724574560350,6.3524,157.42,157.37,3.88876446]
[1724574560546,6.3524,157.42,157.38,3.88876446]
[1724574560742,6.3524,157.42,157.36,15.3915]
[1724574560943,6.3524,157.42,157.37,3.8887945]
[1724574561159,6.3524,157.42,157.38,3.8887945]
[1724574561533,6.3524,157.42,157.36,15.3915]
[1724574561836,6.3524,157.42,157.37,3.88876028]
[1724574562026,6.3524,157.42,157.38,3.88876028]
[1724574562221,6.3524,157.42,157.36,15.3915]
[1724574562422,6.64348653,157.47,157.38,6.6432]
[1724574562619,45.0,157.46,157.38,6.6432]
[1724574562822,45.0,157.47,157.38,6.6432]
[1724574563335,6.3504,157.47,157.4,15.11]
[1724574563653,6.3504,157.47,157.41,3.88795277]
[1724574563946,6.3504,157.47,157.4,45.11]
[1724574564137,6.3504,157.47,157.41,3.88773098]
[1724574564347,6.3504,157.47,157.42,1.59026707]
[1724574564527,6.3504,157.47,157.4,15.11]
[1724574564724,45.0,157.46,157.41,2.29726972]
[1724574564945,45.0,157.46,157.42,1.5901866]
[1724574565128,45.0,157.46,157.4,15.11]
[1724574565334,45.0,157.46,157.41,3.88745652]
[1724574565540,45.0,157.46,157.42,1.59018645]
[1724574565743,45.0,157.46,157.4,15.11]
[1724574565946,45.0,157.46,157.41,3.88745652]
[1724574566147,45.0,157.46,157.42,1.59018645]
[1724574566335,45.0,157.46,157.4,15.11]
[1724574566536,45.0,157.46,157.41,3.88745751]
[1724574566758,45.0,157.46,157.42,1.59018674]
[1724574566963,45.0,157.46,157.4,15.11]
[1724574567135,45.0,157.46,157.41,3.88745751]
[1724574567335,45.0,157.46,157.42,1.59018674]
[1724574567631,45.0,157.47,157.4,15.11]
[1724574567834,45.0,157.47,157.41,5.15771694]
[1724574568060,45.0,157.47,157.42,3.88727064]
[1724574568351,45.0,157.47,157.43,1.59013178]
[1724574568528,45.0,157.48,157.41,1.2704463]
[1724574568726,45.0,157.48,157.42,3.88693384]
[1724574568940,51.35,157.48,157.43,1.59003272]
[1724574569147,51.35,157.48,157.41,1.2704463]
[1724574569358,51.35,157.48,157.42,3.88702588]
[1724574569559,51.35,157.48,157.4,15.11]
[1724574569726,51.35,157.48,157.41,3.88699528]
[1724574569929,51.35,157.48,157.42,3.88699528]
[1724574570358,51.35,157.48,157.4,15.11]
[1724574570546,51.35,157.48,157.41,33.88699108]
[1724574570749,51.35,157.48,157.42,3.88699108]
[1724574570941,51.35,157.48,157.41,30.0]
[1724574571351,51.35,157.48,157.42,3.8869641]
[1724574571538,51.35,157.48,157.41,30.0]
[1724574571745,51.35,157.48,157.42,1.5900505]
[1724574571953,51.35,157.48,157.41,30.0]
[1724574572153,51.35,157.48,157.42,1.59004941]
[1724574572341,51.35,157.48,157.41,30.0]
[1724574572672,51.35,157.48,157.42,1.59004927]
[1724574572837,51.35,157.48,157.4,15.11]
[1724574573037,51.35,157.48,157.41,3.88699009]
[1724574573361,51.35,157.48,157.42,1.59004927]
[1724574573660,51.35,157.48,157.4,15.11]
[1724574573864,51.35,157.48,157.41,3.88699108]
[1724574574056,51.35,157.48,157.42,1.59004956]
[1724574574259,51.35,157.48,157.4,15.11]
[1724574574560,51.35,157.48,157.41,3.88699108]
[1724574574756,51.35,157.48,157.4,15.11]
[1724574574956,51.35,157.48,157.41,3.88699093]
[1724574575263,51.35,157.48,157.4,15.11]
[1724574575566,51.35,157.48,157.41,3.88699108]
[1724574575757,51.35,157.48,157.4,15.11]
[1724574575965,51.35,157.48,157.41,3.88699058]
[1724574576148,51.35,157.48,157.42,1.59001331]
[1724574576459,51.35,157.48,157.4,15.11]
[1724574576639,51.35,157.48,157.41,3.88686736]
[1724574576847,51.35,157.48,157.41,1.27036955]
[1724574577272,51.35,157.48,157.4,15.11]
[1724574577571,51.35,157.48,157.41,1.59004956]
[1724574577745,51.35,157.48,157.4,15.11]
[1724574578067,51.35,157.48,157.41,31.59004956]
[1724574578269,51.35,157.48,157.41,30.0]
[1724574581948,51.35,157.48,157.4,15.11]
[1724574582773,6.3505,157.47,157.4,15.11]
[1724574582960,45.0,157.46,157.4,15.11]
[1724574588875,6.35,157.48,157.4,15.11]
[1724574589082,270.7706,157.53,157.4,15.11]
[1724574589083,6.3505,157.47,157.4,15.11]
[1724574589755,6.35,157.48,157.41,1.59000075]
[1724574589956,6.35,157.48,157.4,15.11]
[1724574590278,6.3495,157.5,157.41,1.59000043]
[1724574590583,6.3495,157.5,157.41,30.0]
[1724574590775,45.0,157.49,157.41,30.0]
[1724574591798,6.3495,157.5,157.42,1.27020601]
[1724574592084,6.3495,157.5,157.43,1.27016589]
[1724574592276,6.3495,157.5,157.41,30.0]
[1724574592480,6.3495,157.5,157.42,1.58996082]
[1724574592785,6.3495,157.5,157.41,30.0]
[1724574592986,6.3495,157.5,157.43,30.0]
[1724574594790,6.3495,157.5,157.43,36.224]
[1724574595886,6.3495,157.5,157.43,6.224]
[1724574596190,6.3495,157.5,157.44,1.27015697]
[1724574598194,16.61531438,157.54,157.44,1.27015697]
[1724574598394,6.3491,157.51,157.44,1.27015697]
[1724574598686,51.3492,157.5,157.44,1.27015697]
[1724574599563,51.3492,157.5,157.43,6.224]
[1724574600078,51.3492,157.5,157.44,1.2701343]
[1724574600396,51.3492,157.5,157.43,6.224]
[1724574600991,51.3492,157.5,157.44,30.0]
[1724574601870,0.19071438,157.54,157.45,16.85851643]
[1724574602089,0.19071438,157.54,157.46,3.88496798]
[1724574602392,6.348,157.53,157.47,1.58965253]
[1724574602694,6.348,157.53,157.45,15.5884]
[1724574602897,6.348,157.53,157.46,1.58964539]
[1724574603069,6.348,157.53,157.47,1.58964539]
[1724574603274,6.348,157.53,157.45,15.5884]
[1724574603477,6.348,157.53,157.46,1.58966995]
[1724574603796,45.0,157.52,157.45,15.5884]
[1724574604003,45.0,157.52,157.46,1.58966143]
[1724574604185,45.0,157.52,157.45,15.5884]
[1724574604693,51.3484,157.52,157.46,1.58969823]
[1724574604997,51.3484,157.52,157.46,1.27006252]
[1724574605381,0.19071438,157.54,157.45,15.5884]
[1724574605596,0.19071438,157.54,157.46,30.0]
[1724574606299,0.19071438,157.54,157.46,31.26996566]
[1724574606472,6.3483,157.53,157.46,31.26996566]
[1724574606680,6.3483,157.53,157.46,30.0]
[1724574607308,0.19071438,157.54,157.48,6.1112]
[1724574608794,6.3481,157.53,157.48,6.1112]
[1724574609608,6.53831438,157.54,157.48,6.1112]
[1724574609903,51.348,157.53,157.48,6.1112]
[1724574610072,6.3488,157.51,157.48,6.1112]
[1724574610792,51.3483,157.53,157.48,6.1112]
[1724574612375,60.8706,157.53,157.45,15.5884]
[1724574612573,6.3499,157.49,157.45,15.5884]
[1724574612777,45.0,157.48,157.45,15.5884]
[1724574613203,51.3503,157.48,157.44,6.1112]
[1724574613700,51.3503,157.48,157.41,15.5884]
[1724574614085,45.0,157.48,157.41,15.5884]
[1724574614287,45.0,157.48,157.42,1.27028678]
[1724574615486,45.0,157.48,157.41,15.5884]
[1724574618095,45.0,157.48,157.42,1.27028863]
[1724574619693,6.3493,157.5,157.42,1.27028863]
[1724574619893,51.3496,157.49,157.42,1.27028863]
[1724574620120,51.3496,157.49,157.41,15.5884]
[1724574620413,6.35,157.48,157.42,31.27029058]
[1724574620612,45.0,157.49,157.43,1.27028647]
[1724574621196,45.0,157.49,157.42,30.0]
[1724574622407,45.0,157.49,157.43,1.27018317]
[1724574622602,6.3495,157.5,157.43,1.27018317]
[1724574622916,6.3495,157.5,157.42,30.0]
[1724574623303,6.3495,157.5,157.41,15.5884]
[1724574623620,6.3495,157.5,157.42,10.04908881]
[1724574623792,6.3495,157.5,157.41,15.5884]
[1724574623992,6.3495,157.5,157.42,10.04874789]
[1724574624302,6.3495,157.5,157.43,1.27013546]
[1724574624700,0.19071438,157.54,157.41,15.5884]
[1724574624910,0.19071438,157.54,157.42,60.04874467]
[1724574625122,0.19071438,157.54,157.42,50.0]
[1724574625415,6.3484,157.52,157.42,50.0]
[1724574625615,6.3484,157.52,157.42,20.0]
[1724574626315,45.0,157.51,157.42,20.0]
[1724574626513,45.0,157.51,157.43,40.04858505]
[1724574626716,45.0,157.51,157.43,30.0]
[1724574627094,0.19071438,157.54,157.44,33.2944782]
[1724574627324,0.19071438,157.54,157.44,23.2473]